bitfinex/quotes_BTCUSD_20250719
["timestamp","ask_amount","ask_price","bid_price","bid_amount"]
[1752899117487,0.75753508,118320.0,118310.0,1.81261979]
[1752899117869,0.2436607,118320.0,118310.0,1.81261979]
[1752899118081,0.75753508,118320.0,118310.0,1.81261979]
[1752899119757,0.2436607,118320.0,118310.0,1.81261979]
[1752899119968,0.75753508,118320.0,118310.0,1.81261979]
[1752899121188,0.2436607,118320.0,118310.0,1.81261979]
[1752899121391,0.75753508,118320.0,118310.0,1.81261979]
[1752899123886,0.74223508,118320.0,118310.0,1.81261979]
[1752899124911,0.74223508,118320.0,118310.0,1.81473979]
[1752899126260,0.48529789,118320.0,118310.0,1.81473979]
[1752899127526,0.45130225,118320.0,118310.0,1.81473979]
[1752899127753,0.44636225,118320.0,118310.0,1.81473979]
[1752899129267,0.47178515,118320.0,118310.0,1.81473979]
[1752899129821,0.21484796,118320.0,118310.0,1.81473979]
[1752899130226,0.47178515,118320.0,118310.0,1.81473979]
[1752899131807,0.21484796,118320.0,118310.0,1.81473979]
[1752899131992,0.47178515,118320.0,118310.0,1.81473979]
[1752899133543,0.48019468,118320.0,118310.0,1.81473979]
[1752899134308,0.45481468,118320.0,118310.0,1.81473979]
[1752899135467,0.45805468,118320.0,118310.0,1.81473979]
[1752899138160,0.45481468,118320.0,118310.0,1.81473979]
[1752899140504,0.45805468,118320.0,118310.0,1.81473979]
[1752899141885,0.20111749,118320.0,118310.0,1.81473979]
[1752899142084,0.45805468,118320.0,118310.0,1.81473979]
[1752899145279,0.46008468,118320.0,118310.0,1.81473979]
[1752899146426,0.73232187,118320.0,118310.0,1.81473979]
[1752899147014,0.73232187,118320.0,118310.0,1.81261979]
[1752899147240,0.74812187,118320.0,118310.0,1.81261979]
[1752899149386,0.73232187,118320.0,118310.0,1.81261979]
[1752899152160,0.74782187,118320.0,118310.0,1.81261979]
[1752899153458,0.23394749,118320.0,118310.0,1.68265979]
[1752899153640,0.74782187,118320.0,118310.0,1.81221979]
[1752899155593,0.74782187,118320.0,118310.0,1.68265979]
[1752899155884,0.74782187,118320.0,118310.0,1.81221979]
[1752899156632,0.74782187,118320.0,118310.0,1.68265979]
[1752899156849,0.74782187,118320.0,118310.0,1.81221979]
[1752899161848,0.23394749,118320.0,118310.0,1.81221979]
[1752899162091,0.74782187,118320.0,118310.0,1.81221979]
[1752899165642,0.23394749,118320.0,118310.0,1.81221979]
[1752899165876,0.74782187,118320.0,118310.0,1.81221979]
[1752899166951,0.87738187,118320.0,118310.0,1.81221979]
[1752899167596,0.96289215,118320.0,118310.0,1.81221979]
[1752899168025,0.96289215,118320.0,118310.0,1.68265979]
[1752899169312,0.977433,118320.0,118310.0,1.68265979]
[1752899169727,1.002818,118320.0,118310.0,1.68265979]
[1752899170083,1.001818,118320.0,118310.0,1.68265979]
[1752899170405,1.003818,118320.0,118310.0,1.68265979]
[1752899170608,0.874258,118320.0,118310.0,1.68265979]
[1752899170786,1.003818,118320.0,118310.0,1.68265979]
[1752899171774,1.002818,118320.0,118310.0,1.68265979]
[1752899172187,1.004818,118320.0,118310.0,1.68265979]
[1752899177250,0.875258,118320.0,118310.0,1.68265979]
[1752899177463,1.004818,118320.0,118310.0,1.68265979]
[1752899178967,0.875258,118320.0,118310.0,1.68265979]
[1752899179192,1.004818,118320.0,118310.0,1.68265979]
[1752899179505,0.875258,118320.0,118310.0,1.68265979]
[1752899179703,1.004818,118320.0,118310.0,1.68265979]
[1752899179918,0.875258,118320.0,118310.0,1.68265979]
[1752899180106,1.004818,118320.0,118310.0,1.68265979]
[1752899184209,0.875258,118320.0,118310.0,1.68265979]
[1752899184414,0.844458,118320.0,118310.0,1.68265979]
[1752899184629,0.973978,118320.0,118310.0,1.68478979]
[1752899185183,1.005978,118320.0,118310.0,1.68265979]
[1752899185366,0.49210362,118320.0,118310.0,1.68265979]
[1752899185594,1.005978,118320.0,118310.0,1.68265979]
[1752899186439,1.005978,118320.0,118310.0,1.81217979]
[1752899188028,1.005978,118320.0,118310.0,1.68265979]
[1752899190416,0.973978,118320.0,118310.0,1.68265979]
[1752899190818,0.989078,118320.0,118310.0,1.68265979]
[1752899191375,1.004178,118320.0,118310.0,1.68265979]
[1752899192012,1.004178,118320.0,118310.0,1.81217979]
[1752899192400,0.97034557,118320.0,118310.0,1.81217979]
[1752899193879,0.97034557,118320.0,118310.0,1.68265979]
[1752899195864,0.97034557,118320.0,118310.0,1.81217979]
[1752899196692,0.97904871,118320.0,118310.0,1.81217979]
[1752899196909,1.00471132,118320.0,118310.0,1.81217979]
[1752899200017,1.00471132,118320.0,118310.0,1.68265979]
[1752899200508,0.49083694,118320.0,118310.0,1.68265979]
[1752899200682,1.00471132,118320.0,118310.0,1.68265979]
[1752899201873,1.00471132,118320.0,118310.0,1.81217979]
[1752899203921,1.00471132,118320.0,118310.0,1.68265979]
[1752899208242,0.74777413,118320.0,118310.0,1.68265979]
[1752899208463,1.00471132,118320.0,118310.0,1.68265979]
[1752899212597,1.00467132,118320.0,118310.0,1.68265979]
[1752899213015,0.74773413,118320.0,118310.0,1.68265979]
[1752899216392,0.49079694,118320.0,118310.0,1.68265979]
[1752899216635,0.74773413,118320.0,118310.0,1.68265979]
[1752899220213,0.49079694,118320.0,118310.0,1.68265979]
[1752899220450,0.74773413,118320.0,118310.0,1.68265979]
[1752899225344,0.73263413,118320.0,118310.0,1.68265979]
[1752899229937,0.74873413,118320.0,118310.0,1.68265979]
[1752899233627,1.00567132,118320.0,118310.0,1.68265979]
[1752899240404,1.34567132,118320.0,118310.0,1.68265979]
[1752899246077,0.83179694,118320.0,118310.0,1.68265979]
[1752899246209,1.34567132,118320.0,118310.0,1.68265979]
[1752899249398,0.83179694,118320.0,118310.0,1.68265979]
[1752899249600,1.34567132,118320.0,118310.0,1.68265979]
[1752899253817,1.32957132,118320.0,118310.0,1.68265979]
[1752899254158,1.31447132,118320.0,118310.0,1.68265979]
[1752899254690,0.80059694,118320.0,118310.0,1.68265979]
[1752899254932,1.31447132,118320.0,118310.0,1.68265979]
[1752899256509,1.05218413,118320.0,118310.0,1.70017979]
[1752899256730,1.30912132,118320.0,118310.0,1.70017979]
[1752899257347,1.27475557,118320.0,118310.0,1.68477979]
[1752899258669,1.14535557,118320.0,118310.0,1.68477979]
[1752899258874,1.27475557,118320.0,118310.0,1.68477979]
[1752899260190,1.29996466,118320.0,118310.0,1.68477979]
[1752899261294,1.30206466,118320.0,118310.0,1.68477979]
[1752899261414,1.30528466,118320.0,118310.0,1.68477979]
[1752899263832,1.31357272,118320.0,118310.0,1.68477979]
[1752899266035,1.29903187,118320.0,118310.0,1.68477979]
[1752899267009,1.31443187,118320.0,118310.0,1.68265979]
[1752899267234,1.33013187,118320.0,118310.0,1.68265979]
[1752899275407,1.20073187,118320.0,118310.0,1.68265979]
[1752899275576,1.33005187,118320.0,118310.0,1.68265979]
[1752899280235,0.81617749,118320.0,118310.0,1.68265979]
[1752899280424,1.33005187,118320.0,118310.0,1.68265979]
[1752899280871,1.07311468,118320.0,118310.0,1.68265979]
[1752899286449,1.33005187,118320.0,118310.0,1.68265979]
[1752899287629,1.07311468,118320.0,118310.0,1.68265979]
[1752899288482,0.94379468,118320.0,118310.0,1.68265979]
[1752899288702,1.07307468,118320.0,118310.0,1.68265979]
[1752899296806,1.04197468,118320.0,118310.0,1.68265979]
[1752899297015,1.07357468,118320.0,118310.0,1.68265979]
[1752899299224,0.94429468,118320.0,118310.0,1.68265979]
[1752899299429,1.07357468,118320.0,118310.0,1.68265979]
[1752899303292,0.81663749,118320.0,118310.0,1.68265979]
[1752899303505,1.07357468,118320.0,118310.0,1.68265979]
[1752899306150,0.81663749,118320.0,118310.0,1.68265979]
[1752899306355,1.33051187,118320.0,118310.0,1.68265979]
[1752899307692,1.07357468,118320.0,118310.0,1.68265979]
[1752899310873,1.33051187,118320.0,118310.0,1.68265979]
[1752899315470,1.33051187,118320.0,118310.0,1.23566366]
[1752899315595,1.33051187,118320.0,118310.0,1.17587131]
[1752899316248,1.33051187,118320.0,118310.0,0.77986292]
[1752899322404,1.29701472,118320.0,118310.0,0.77986292]
[1752899327315,1.30561518,118320.0,118310.0,0.77986292]
[1752899329247,1.33123563,118320.0,118310.0,0.77986292]
[1752899344957,1.33107563,118320.0,118310.0,0.77986292]
[1752899345782,0.68808125,118320.0,118310.0,0.77986292]
[1752899345983,1.31527563,118320.0,118310.0,0.77986292]
[1752899349561,0.80140125,118320.0,118310.0,0.77986292]
[1752899349730,1.31527563,118320.0,118310.0,0.77986292]
[1752899358971,1.29947563,118320.0,118310.0,0.77986292]
[1752899366299,1.31447563,118320.0,118310.0,0.77986292]
[1752899368580,1.29947563,118320.0,118310.0,0.77986292]
[1752899370033,1.31447563,118320.0,118310.0,0.77986292]
[1752899372024,0.80060125,118320.0,118310.0,0.77986292]
[1752899372203,1.31447563,118320.0,118310.0,0.77986292]
[1752899372436,1.33097563,118320.0,118310.0,0.77986292]
[1752899376714,1.33888722,118320.0,118310.0,0.77986292]
[1752899377537,1.32238722,118320.0,118310.0,0.77986292]
[1752899379154,1.31447563,118320.0,118310.0,0.77986292]
[1752899380704,1.29947563,118320.0,118310.0,0.77986292]
[1752899385466,1.17035563,118320.0,118310.0,0.77986292]
[1752899385674,1.29935563,118320.0,118310.0,0.77986292]
[1752899387048,1.17035563,118320.0,118310.0,0.77986292]
[1752899387251,1.29935563,118320.0,118310.0,0.77986292]
[1752899387430,1.13613472,118320.0,118310.0,0.77986292]
[1752899387652,1.26513472,118320.0,118310.0,0.77986292]
[1752899388896,1.29103412,118320.0,118310.0,0.77986292]
[1752899389531,1.16203412,118320.0,118310.0,0.77986292]
[1752899389741,1.29103412,118320.0,118310.0,0.77986292]
[1752899391891,1.29945159,118320.0,118310.0,0.77986292]
[1752899395357,1.30736173,118320.0,118310.0,0.77986292]
[1752899398715,1.34036173,118320.0,118310.0,0.77986292]
[1752899399190,1.33245159,118320.0,118310.0,0.77986292]
[1752899399421,1.34036147,118320.0,118310.0,0.77986292]
[1752899400395,0.80988709,118320.0,118310.0,0.77986292]
[1752899400607,1.30736147,118320.0,118310.0,0.77986292]
[1752899401095,1.29945159,118320.0,118310.0,0.77986292]
[1752899401594,0.78557721,118320.0,118310.0,0.77986292]
[1752899401765,1.29945159,118320.0,118310.0,0.77986292]
[1752899402129,1.29941159,118320.0,118310.0,0.78186292]
[1752899403182,1.17045159,118320.0,118310.0,0.78186292]
[1752899403377,1.29941159,118320.0,118310.0,0.78186292]
[1752899404759,1.29941159,118320.0,118310.0,0.77986292]
[1752899405970,0.78553721,118320.0,118310.0,0.77986292]
[1752899406181,1.29941159,118320.0,118310.0,0.77986292]
[1752899419278,1.17045159,118320.0,118310.0,0.77986292]
[1752899419455,1.29937159,118320.0,118310.0,0.77986292]
[1752899431121,0.78549721,118320.0,118310.0,0.77986292]
[1752899431333,1.29937159,118320.0,118310.0,0.77986292]
[1752899436107,1.29937159,118320.0,118310.0,0.81598292]
[1752899436108,0.65125721,118320.0,118310.0,0.81598292]
[1752899436336,0.78025721,118320.0,118310.0,0.81598292]
[1752899436561,0.78029721,118320.0,118310.0,0.81598292]
[1752899436794,0.65125721,118320.0,118310.0,0.81598292]
[1752899437006,0.65125721,118320.0,118310.0,1.07292011]
[1752899437231,0.54036193,118320.0,118310.0,1.20196011]
[1752899437482,0.66940193,118320.0,118310.0,1.20196011]
[1752899437728,0.66940193,118320.0,118310.0,0.94502292]
[1752899437974,0.54036193,118320.0,118310.0,0.94502292]
[1752899442528,0.66932193,118320.0,118310.0,0.94502292]
[1752899442758,0.92625912,118320.0,118310.0,0.94502292]
[1752899447405,0.66932193,118320.0,118310.0,0.94502292]
[1752899447636,0.92625912,118320.0,118310.0,0.94502292]
[1752899449374,0.66932193,118320.0,118310.0,0.94502292]
[1752899449577,0.92625912,118320.0,118310.0,0.94502292]
[1752899450196,0.66932193,118320.0,118310.0,0.94502292]
[1752899450409,0.92625912,118320.0,118310.0,0.94502292]
[1752899452528,0.89194225,118320.0,118310.0,0.94502292]
[1752899456108,0.91781598,118320.0,118310.0,0.94502292]
[1752899457185,0.66952993,118320.0,118310.0,0.94502292]
[1752899457403,0.1746962,118320.0,118310.0,1.20196011]
[1752899460209,0.1746962,118320.0,118310.0,0.94502292]
[1752899460616,0.1746962,118320.0,118310.0,1.20196011]
[1752899460969,0.1746962,118320.0,118310.0,0.94502292]
[1752899461167,0.1746962,118320.0,118310.0,1.20196011]
[1752899470343,0.1746962,118320.0,118310.0,1.20176011]
[1752899475778,0.1746962,118320.0,118310.0,0.94482292]
[1752899475978,0.1746962,118320.0,118310.0,0.94265292]
[1752899476121,0.1746962,118320.0,118310.0,1.19959011]
[1752899476930,0.1746962,118320.0,118310.0,1.20176011]
[1752899480390,0.01265114,118320.0,118310.0,1.75315208]
[1752899480601,0.004,118320.0,118310.0,1.75315208]
[1752899481197,0.01690073,118330.0,118320.0,0.20892808]
[1752899481406,0.04225276,118330.0,118320.0,0.86826994]
[1752899481636,0.04225276,118330.0,118320.0,0.87889138]
[1752899481842,0.04225276,118330.0,118320.0,0.88734275]
[1752899482054,0.04225276,118330.0,118320.0,0.87889138]
[1752899482464,0.03380189,118330.0,118320.0,0.87889138]
[1752899482598,0.05088902,118330.0,118320.0,0.93604156]
[1752899482810,0.05088902,118330.0,118320.0,0.93704156]
[1752899483746,0.05088902,118330.0,118320.0,0.93904156]
[1752899483924,0.01708663,118330.0,118320.0,0.94749271]
[1752899484125,0.01708663,118330.0,118320.0,0.8987939]
[1752899484908,0.01708671,118330.0,118320.0,0.98430418]
[1752899485164,0.02553715,118330.0,118320.0,0.98430418]
[1752899485514,0.01708663,118330.0,118320.0,0.98430418]
[1752899485734,0.01708663,118330.0,118320.0,1.06790183]
[1752899486676,0.00863634,118330.0,118320.0,1.06790183]
[1752899486874,0.0253993,118340.0,118330.0,0.23246128]
[1752899487104,0.0253993,118340.0,118330.0,0.62032847]
[1752899487387,0.0253993,118340.0,118330.0,0.61404775]
[1752899487545,0.0253993,118340.0,118330.0,0.63094926]
[1752899487749,0.03384952,118340.0,118330.0,0.61404775]
[1752899487925,0.03384952,118340.0,118330.0,0.67232844]
[1752899488123,0.01694914,118340.0,118330.0,0.63194912]
[1752899488379,0.02639908,118340.0,118330.0,0.64039963]
[1752899488534,0.01794914,118340.0,118330.0,0.64885007]
[1752899488959,0.02639901,118340.0,118330.0,0.64885007]
[1752899489215,0.03484902,118340.0,118330.0,0.64039963]
[1752899489439,0.03484895,118340.0,118330.0,0.64039963]
[1752899489640,0.03484895,118340.0,118330.0,0.72615925]
[1752899489641,0.00962228,118340.0,118330.0,0.72615925]
[1752899489942,0.01807186,118340.0,118330.0,0.73460969]
[1752899490140,0.00962228,118340.0,118330.0,0.73460969]
[1752899490844,0.01807193,118340.0,118330.0,0.73460969]
[1752899492162,0.00962228,118340.0,118330.0,0.73460969]
[1752899493220,0.018072,118340.0,118330.0,0.73460969]
[1752899493434,0.01807193,118340.0,118330.0,0.73460969]
[1752899493658,0.00962228,118340.0,118330.0,0.73460969]
[1752899493863,0.01807186,118340.0,118330.0,0.73460969]
[1752899494070,0.00962228,118340.0,118330.0,0.73460969]
[1752899499221,0.01807193,118340.0,118330.0,0.73460969]
[1752899499428,0.02652172,118340.0,118330.0,0.73460969]
[1752899503005,0.01807193,118340.0,118330.0,0.73460969]
[1752899503648,0.00962228,118340.0,118330.0,0.73460969]
[1752899503890,0.03497166,118340.0,118330.0,0.71770874]
[1752899504091,0.02652165,118340.0,118330.0,0.72615918]
[1752899504645,0.03497152,118340.0,118330.0,0.72615918]
[1752899505663,0.02652165,118340.0,118330.0,0.72615918]
[1752899506553,0.02652158,118340.0,118330.0,0.72615918]
[1752899506763,0.00962228,118340.0,118330.0,5.72615918]
[1752899507563,0.00962228,118340.0,118330.0,5.81166946]
[1752899507794,0.00962228,118340.0,118330.0,5.81066946]
[1752899508020,0.00862228,118340.0,118330.0,5.81066946]
[1752899508463,0.00862228,118340.0,118330.0,5.81166946]
[1752899510184,0.00862228,118340.0,118330.0,5.81266946]
[1752899514418,0.00862228,118340.0,118330.0,5.72126646]
[1752899514623,0.01707193,118340.0,118330.0,0.81266946]
[1752899514989,0.01707193,118340.0,118330.0,5.00423746]
[1752899515886,0.01707193,118340.0,118330.0,4.12225846]
[1752899516086,0.00862228,118340.0,118330.0,3.56079946]
[1752899516291,0.01707186,118340.0,118330.0,3.45414346]
[1752899516492,0.01707186,118340.0,118330.0,3.30170946]
[1752899516676,0.00862228,118340.0,118330.0,3.17064946]
[1752899517095,0.00862228,118340.0,118330.0,2.91124946]
[1752899517409,4.97e-05,118340.0,118330.0,2.89458746]
[1752899517791,4.97e-05,118340.0,118330.0,2.86841846]
[1752899518249,4.97e-05,118340.0,118330.0,2.72665446]
[1752899518500,4.97e-05,118340.0,118330.0,2.60064646]
[1752899520392,4.97e-05,118340.0,118330.0,2.94064646]
[1752899521275,0.008388,118340.0,118330.0,2.94064646]
[1752899521495,4.97e-05,118340.0,118330.0,2.85488684]
[1752899523269,4.97e-05,118340.0,118330.0,1.06690984]
[1752899523500,0.00871895,118340.0,118330.0,1.06690984]
[1752899523939,4.97e-05,118340.0,118330.0,1.06473984]
[1752899527812,4.97e-05,118340.0,118330.0,0.80780265]
[1752899528014,4.97e-05,118340.0,118330.0,1.06473984]
[1752899528909,0.00833557,118340.0,118330.0,1.1275708]
[1752899529132,4.97e-05,118340.0,118330.0,1.06473984]
[1752899530207,4.97e-05,118340.0,118330.0,1.06690984]
[1752899533646,4.97e-05,118340.0,118330.0,0.80997265]
[1752899533856,4.97e-05,118340.0,118330.0,1.06690984]
[1752899538211,4.97e-05,118340.0,118330.0,0.80997265]
[1752899538472,4.97e-05,118340.0,118330.0,1.13138813]
[1752899541159,4.97e-05,118340.0,118330.0,1.12921813]
[1752899541585,4.97e-05,118340.0,118330.0,1.06473984]
[1752899542038,4.97e-05,118340.0,118330.0,1.04853984]
[1752899542248,4.97e-05,118340.0,118330.0,1.03273984]
[1752899566795,4.97e-05,118340.0,118330.0,0.77580265]
[1752899567000,4.97e-05,118340.0,118330.0,1.03273984]
[1752899567370,4.97e-05,118340.0,118330.0,1.11849946]
[1752899567827,4.97e-05,118340.0,118330.0,1.03273984]
[1752899569217,4.97e-05,118340.0,118330.0,0.90393984]
[1752899569523,4.97e-05,118340.0,118330.0,1.03261984]
[1752899569925,4.97e-05,118340.0,118330.0,0.77568265]
[1752899570154,4.97e-05,118340.0,118330.0,1.03261984]
[1752899570362,4.97e-05,118340.0,118330.0,1.11837946]
[1752899577226,4.97e-05,118340.0,118330.0,0.86144227]
[1752899577475,4.97e-05,118340.0,118330.0,1.11837946]
[1752899584257,4.97e-05,118340.0,118330.0,0.86144227]
[1752899584484,4.97e-05,118340.0,118330.0,1.11837946]
[1752899594157,4.97e-05,118340.0,118330.0,1.37531665]
[1752899594393,4.97e-05,118340.0,118330.0,1.37499567]
[1752899594615,4.97e-05,118340.0,118330.0,0.84377057]
[1752899594836,0.0030497,118340.0,118330.0,1.10070776]
[1752899596173,0.0030497,118340.0,118330.0,0.84377057]
[1752899596384,0.0030497,118340.0,118330.0,1.10070776]
[1752899597965,4.97e-05,118340.0,118330.0,1.10070776]
[1752899599572,0.01694922,118340.0,118330.0,1.10070776]
[1752899599787,0.02539923,118340.0,118330.0,1.10070776]
[1752899600125,0.02539923,118340.0,118330.0,1.01494814]
[1752899601561,0.02539923,118340.0,118330.0,0.75801095]
[1752899601767,0.02539923,118340.0,118330.0,1.01494814]
[1752899602184,0.01694922,118340.0,118330.0,1.01494814]
[1752899602308,0.01694914,118340.0,118330.0,1.01494814]
[1752899602742,0.01694907,118340.0,118330.0,1.01494814]
[1752899603258,0.00849935,118340.0,118330.0,1.32574008]
[1752899603686,0.00849935,118340.0,118330.0,1.27188533]
[1752899604074,4.97e-05,118340.0,118330.0,1.27188533]
[1752899604536,0.00849928,118340.0,118330.0,1.27188533]
[1752899604743,4.97e-05,118340.0,118330.0,1.27188533]
[1752899605155,0.00849928,118340.0,118330.0,1.27188533]
[1752899605546,4.97e-05,118340.0,118330.0,1.27188533]
[1752899608840,4.97e-05,118340.0,118330.0,1.35195364]
[1752899610042,4.97e-05,118340.0,118330.0,1.27188533]
[1752899611291,4.97e-05,118340.0,118330.0,1.30419618]
[1752899611503,4.97e-05,118340.0,118330.0,1.32069618]
[1752899611714,4.97e-05,118340.0,118330.0,2.76953418]
[1752899612326,4.97e-05,118340.0,118330.0,2.76853418]
[1752899612534,4.97e-05,118340.0,118330.0,2.8562938]
[1752899613355,4.97e-05,118340.0,118330.0,2.8552938]
[1752899613560,4.97e-05,118340.0,118330.0,2.86366184]
[1752899613774,4.97e-05,118340.0,118330.0,2.86166184]
[1752899613957,4.97e-05,118340.0,118330.0,2.86266184]
[1752899614163,4.97e-05,118340.0,118330.0,2.86566184]
[1752899614413,4.97e-05,118340.0,118330.0,2.86466184]
[1752899614590,4.97e-05,118340.0,118330.0,2.86766184]
[1752899616064,0.04723396,118380.0,118370.0,0.17740981]
[1752899616271,0.04930396,118380.0,118370.0,0.562987]
[1752899616479,0.04935372,118380.0,118370.0,0.562987]
[1752899616684,0.04935372,118380.0,118370.0,0.55453892]
[1752899617106,0.05778354,118380.0,118370.0,0.55453892]
[1752899617308,0.05878354,118380.0,118370.0,0.55453892]
[1752899617696,0.05878354,118380.0,118370.0,0.57143487]
[1752899617697,0.01454958,118380.0,118370.0,0.57143487]
[1752899617907,0.03144325,118380.0,118370.0,0.64801042]
[1752899618109,0.0398904,118380.0,118370.0,0.64801042]
[1752899618266,0.0430604,118380.0,118370.0,0.64801042]
[1752899618652,0.0420604,118380.0,118370.0,0.63956255]
[1752899618862,0.0420604,118380.0,118370.0,0.64801049]
[1752899619062,0.0825077,118380.0,118370.0,0.64801056]
[1752899619272,0.0740604,118380.0,118370.0,0.64801056]
[1752899619476,0.0740604,118380.0,118370.0,0.6564585]
[1752899619677,0.0795077,118380.0,118370.0,0.6564585]
[1752899619920,0.0805077,118380.0,118370.0,0.6564585]
[1752899620642,0.0805077,118380.0,118370.0,0.64801056]
[1752899620846,0.0805077,118380.0,118370.0,0.65645843]
[1752899621512,0.0805077,118380.0,118370.0,0.64801056]
[1752899621727,0.0805077,118380.0,118370.0,0.66490637]
[1752899621946,0.0805077,118380.0,118370.0,0.64801056]
[1752899622350,0.0805077,118380.0,118370.0,0.6564585]
[1752899622737,0.0805077,118380.0,118370.0,0.64801056]
[1752899623349,0.07206097,118380.0,118370.0,0.64801056]
[1752899623545,0.07206097,118380.0,118370.0,0.6564585]
[1752899623712,0.07206097,118380.0,118370.0,0.64801056]
[1752899623922,0.06361367,118380.0,118370.0,0.6564585]
[1752899624321,0.0720609,118380.0,118370.0,0.6564585]
[1752899625198,0.06361325,118380.0,118370.0,0.66490637]
[1752899625381,0.06361325,118380.0,118370.0,0.66490609]
[1752899625691,0.06361325,118380.0,118370.0,0.67335345]
[1752899626232,0.06361325,118380.0,118370.0,0.29760173]
[1752899626488,0.08050763,118380.0,118370.0,0.56298693]
[1752899627267,0.08050756,118380.0,118370.0,0.57143487]
[1752899629390,0.08050756,118380.0,118370.0,0.57988274]
[1752899629619,0.08050756,118380.0,118370.0,0.57143487]
[1752899631251,0.08050756,118380.0,118370.0,0.57988274]
[1752899631669,0.08050756,118380.0,118370.0,0.32294555]
[1752899631875,0.08050756,118380.0,118370.0,0.57988274]
[1752899632430,0.08050756,118380.0,118370.0,0.57143487]
[1752899632807,0.08050756,118380.0,118370.0,0.57988274]
[1752899633013,0.08895493,118380.0,118370.0,0.63901367]
[1752899633146,0.08895493,118380.0,118370.0,0.64746161]
[1752899633369,0.08050756,118380.0,118370.0,0.64746161]
[1752899633608,0.08050756,118380.0,118370.0,0.65590948]
[1752899633779,0.08050756,118380.0,118370.0,0.64746161]
[1752899634352,0.08895493,118380.0,118370.0,0.64746161]
[1752899634552,0.08895493,118380.0,118370.0,0.63901367]
[1752899634956,0.08895493,118380.0,118370.0,0.63901374]
[1752899635185,0.08895493,118380.0,118370.0,0.64746175]
[1752899635400,0.08050756,118380.0,118370.0,0.64746175]
[1752899635609,0.08895486,118380.0,118370.0,0.64746175]
[1752899637413,0.08895486,118380.0,118370.0,0.65590969]
[1752899637622,0.08895486,118380.0,118370.0,0.64746175]
[1752899638654,0.0889555,118380.0,118370.0,0.64746175]
[1752899639048,0.08050813,118380.0,118370.0,0.64746175]
[1752899639284,0.08050813,118380.0,118370.0,0.63901374]
[1752899639498,0.0889555,118380.0,118370.0,0.64746175]
[1752899639711,0.08050813,118380.0,118370.0,0.65590969]
[1752899639913,0.08050813,118380.0,118370.0,0.64746175]
[1752899640059,0.0889555,118380.0,118370.0,0.64746175]
[1752899640267,0.0889555,118380.0,118370.0,0.65590969]
[1752899640447,0.0889555,118380.0,118370.0,0.64746175]
[1752899640820,0.0889555,118380.0,118370.0,0.562987]
[1752899641116,0.0889555,118380.0,118370.0,0.55453892]
[1752899641117,0.24945601,118380.0,118370.0,0.55453892]
[1752899641323,0.24945601,118380.0,118370.0,0.56298693]
[1752899641534,0.08050856,118380.0,118370.0,0.56298693]
[1752899641737,0.08050856,118380.0,118370.0,0.57143487]
[1752899642280,0.07206119,118380.0,118370.0,0.65590948]
[1752899642492,0.07206119,118380.0,118370.0,0.64746161]
[1752899642704,0.02844389,118380.0,118370.0,0.66641728]
[1752899643323,0.03147389,118380.0,118370.0,0.65796948]
[1752899644611,0.03992119,118380.0,118370.0,0.65796948]
[1752899644842,0.03992119,118380.0,118370.0,0.64952161]
[1752899645051,0.03992119,118380.0,118370.0,0.65796948]
[1752899645254,0.03147389,118380.0,118370.0,0.65796948]
[1752899645463,0.03147389,118380.0,118370.0,0.66641728]
[1752899645886,0.03147389,118380.0,118370.0,0.674865]
[1752899646229,0.03147389,118380.0,118370.0,0.66641728]
[1752899647000,0.03147389,118380.0,118370.0,0.674865]
[1752899647178,0.02844389,118380.0,118370.0,0.674865]
[1752899647410,0.02001407,118380.0,118370.0,0.674865]
[1752899648072,0.02846094,118380.0,118370.0,0.66641699]
[1752899648518,0.02846094,118380.0,118370.0,0.65796927]
[1752899648726,0.03993831,118380.0,118370.0,0.65796927]
[1752899649063,0.03149094,118380.0,118370.0,0.65796927]
[1752899649991,0.03993824,118380.0,118370.0,0.65796927]
[1752899650847,0.03149094,118380.0,118370.0,0.66641692]
[1752899650970,0.03149094,118380.0,118370.0,0.66641699]
[1752899651694,0.03149094,118380.0,118370.0,0.65796927]
[1752899652018,0.03149094,118380.0,118370.0,0.66641699]
[1752899652262,0.03149094,118380.0,118370.0,0.65796927]
[1752899652827,0.03149094,118380.0,118370.0,0.66641699]
[1752899653025,0.03149094,118380.0,118370.0,0.65796927]
[1752899653271,0.03140964,118380.0,118370.0,0.66641699]
[1752899653449,0.03985679,118380.0,118370.0,0.67486464]
[1752899654033,0.03985679,118380.0,118370.0,0.66641699]
[1752899654242,0.04830416,118380.0,118370.0,0.66641699]
[1752899655440,0.04830416,118380.0,118370.0,0.65796927]
[1752899655669,0.04830416,118380.0,118370.0,0.66641699]
[1752899655896,0.04830416,118380.0,118370.0,0.65796927]
[1752899656694,0.04527416,118380.0,118370.0,0.66641699]
[1752899658017,0.04527416,118380.0,118370.0,0.67486464]
[1752899658228,0.04527416,118380.0,118370.0,0.66641699]
[1752899661456,0.04527416,118380.0,118370.0,0.67486464]
[1752899662194,0.04527416,118380.0,118370.0,0.66641699]
[1752899663244,0.03682679,118380.0,118370.0,0.67486464]
[1752899663460,0.04527409,118380.0,118370.0,0.67486464]
[1752899664053,0.03682679,118380.0,118370.0,0.67486464]
[1752899664279,0.02837964,118380.0,118370.0,0.67486428]
[1752899664794,0.02837964,118380.0,118370.0,0.6664167]
[1752899665328,0.01993256,118380.0,118370.0,0.67486428]
[1752899665561,0.01786256,118380.0,118370.0,0.69373428]
[1752899665730,0.02630957,118380.0,118370.0,0.69373428]
[1752899665926,0.02630957,118380.0,118370.0,0.67803428]
[1752899666893,0.01786256,118380.0,118370.0,0.67803428]
[1752899667317,0.02630957,118380.0,118370.0,0.67803428]
[1752899667612,0.01786256,118380.0,118370.0,0.67803428]
[1752899668034,0.01786256,118380.0,118370.0,0.42109709]
[1752899668247,0.02630957,118380.0,118370.0,0.67803428]
[1752899668381,0.03475665,118380.0,118370.0,0.6695867]
[1752899668575,0.03475665,118380.0,118370.0,0.67803428]
[1752899669233,0.02630957,118380.0,118370.0,0.67803428]
[1752899670020,0.04320395,118380.0,118370.0,0.6695867]
[1752899670242,0.03475665,118380.0,118370.0,0.67803428]
[1752899670557,0.04320388,118380.0,118370.0,0.67803428]
[1752899672960,0.04320388,118380.0,118370.0,0.40420186]
[1752899673177,0.05165118,118380.0,118370.0,0.6695867]
[1752899673602,0.05165118,118380.0,118370.0,0.67803428]
[1752899673818,0.03475665,118380.0,118370.0,0.67803428]
[1752899673994,0.04320388,118380.0,118370.0,0.67803428]
[1752899674225,0.03475665,118380.0,118370.0,0.67803428]
[1752899674452,0.04320388,118380.0,118370.0,0.67803428]
[1752899674795,0.03475665,118380.0,118370.0,0.67803428]
[1752899675226,0.04320388,118380.0,118370.0,0.67803428]
[1752899675903,0.03475665,118380.0,118370.0,0.67803428]
[1752899676126,0.05165125,118380.0,118370.0,0.6695867]
[1752899676335,0.04320388,118380.0,118370.0,0.6695867]
[1752899676484,0.05165125,118380.0,118370.0,0.66113905]
[1752899676966,0.04320388,118380.0,118370.0,0.66958663]
[1752899677152,0.04320388,118380.0,118370.0,0.66113905]
[1752899677321,0.05165125,118380.0,118370.0,0.6664167]
[1752899677521,0.04320388,118380.0,118370.0,0.6664167]
[1752899677731,0.05165125,118380.0,118370.0,0.6664167]
[1752899678307,0.04320388,118380.0,118370.0,0.6664167]
[1752899678520,0.03475665,118380.0,118370.0,0.67803428]